[Event "*** Titled Tuesday Blitz"]
[Site "Chess.com"]
[Date "2021.04.06"]
[Round "8"]
[White "bushrashuaibi"]
[Black "Kale36"]
[Result "1/2-1/2"]
[WhiteElo "2244"]
[BlackElo "2389"]
[TimeControl "180+1"]
[EndTime "11:29:54 PDT"]
[Termination "Game drawn by repetition"]

1. d4 {[%clk 0:03:00.9]} 1... d5 {[%clk 0:02:59.1]} 2. Nf3 {[%clk 0:02:58.9]}
2... Nc6 {[%clk 0:02:58.9]} 3. c4 {[%clk 0:02:46.2]} 3... Bg4 {[%clk 0:02:58.3]}
4. cxd5 {[%clk 0:02:43.5]} 4... Bxf3 {[%clk 0:02:58.3]} 5. gxf3 {[%clk
0:02:41.9]} 5... Qxd5 {[%clk 0:02:57.8]} 6. e3 {[%clk 0:02:25.8]} 6... e5 {[%clk
0:02:57.5]} 7. dxe5 {[%clk 0:02:23]} 7... Qxd1+ {[%clk 0:02:49.7]} 8. Kxd1
{[%clk 0:02:23.9]} 8... Nxe5 {[%clk 0:02:48.5]} 9. Ke2 {[%clk 0:02:21.5]} 9...
f5 {[%clk 0:02:35]} 10. f4 {[%clk 0:02:19.1]} 10... Nd7 {[%clk 0:02:24.8]} 11.
Bg2 {[%clk 0:02:19]} 11... O-O-O {[%clk 0:02:23.8]} 12. Bd2 {[%clk 0:02:13.3]}
12... Be7 {[%clk 0:02:21.8]} 13. Nc3 {[%clk 0:01:59.3]} 13... c6 {[%clk
0:02:18.1]} 14. Rhc1 {[%clk 0:01:53.6]} 14... Kb8 {[%clk 0:02:14.6]} 15. Rab1
{[%clk 0:01:53.7]} 15... Bf6 {[%clk 0:02:06.7]} 16. b4 {[%clk 0:01:53.7]} 16...
Nb6 {[%clk 0:01:56.7]} 17. b5 {[%clk 0:01:49.1]} 17... Ne7 {[%clk 0:01:47]} 18.
bxc6 {[%clk 0:01:42.4]} 18... Nxc6 {[%clk 0:01:46.7]} 19. Nb5 {[%clk 0:01:31.7]}
19... Rhe8 {[%clk 0:01:26.5]} 20. Rc2 {[%clk 0:00:54.5]} 20... Nd4+ {[%clk
0:01:23.6]} 21. Nxd4 {[%clk 0:00:52.2]} 21... Rxd4 {[%clk 0:01:14.7]} 22. Ba5
{[%clk 0:00:41.5]} 22... Rd6 {[%clk 0:00:57.8]} 23. Bxb6 {[%clk 0:00:34.5]}
23... Rxb6 {[%clk 0:00:57]} 24. Rxb6 {[%clk 0:00:34]} 24... axb6 {[%clk
0:00:57.9]} 25. Rc4 {[%clk 0:00:31.3]} 25... Rd8 {[%clk 0:00:42.3]} 26. Rb4
{[%clk 0:00:19.8]} 26... Rd6 {[%clk 0:00:38.9]} 27. Rb5 {[%clk 0:00:19.4]} 27...
g6 {[%clk 0:00:38.7]} 28. Rd5 {[%clk 0:00:19.4]} 28... Be7 {[%clk 0:00:19.1]}
29. Rxd6 {[%clk 0:00:19.4]} 29... Bxd6 {[%clk 0:00:20]} 30. Bd5 {[%clk
0:00:19.4]} 30... h6 {[%clk 0:00:11.9]} 31. Bf7 {[%clk 0:00:18]} 31... g5 {[%clk
0:00:12.3]} 32. fxg5 {[%clk 0:00:17.1]} 32... hxg5 {[%clk 0:00:12.5]} 33. Bg6
{[%clk 0:00:16.6]} 33... Bxh2 {[%clk 0:00:10.4]} 34. Bxf5 {[%clk 0:00:16.6]}
34... Kc7 {[%clk 0:00:10.1]} 35. Kf3 {[%clk 0:00:15.1]} 35... Be5 {[%clk
0:00:04.7]} 36. Kg4 {[%clk 0:00:14.1]} 36... Bf6 {[%clk 0:00:05.1]} 37. f3
{[%clk 0:00:11.8]} 37... Kd6 {[%clk 0:00:05.2]} 38. Kh5 {[%clk 0:00:09.6]} 38...
Ke5 {[%clk 0:00:05.1]} 39. Be4 {[%clk 0:00:09.6]} 39... Be7 {[%clk 0:00:04.5]}
40. Bxb7 {[%clk 0:00:08.9]} 40... b5 {[%clk 0:00:05]} 41. Kg4 {[%clk 0:00:05.7]}
41... b4 {[%clk 0:00:05.2]} 42. f4+ {[%clk 0:00:05.6]} 42... gxf4 {[%clk
0:00:05.5]} 43. exf4+ {[%clk 0:00:06.5]} 43... Kf6 {[%clk 0:00:05.8]} 44. Bd5
{[%clk 0:00:04.9]} 44... Bc5 {[%clk 0:00:05.9]} 45. Bb3 {[%clk 0:00:05.6]} 45...
Bd4 {[%clk 0:00:06.1]} 46. Kf3 {[%clk 0:00:05.8]} 46... Bc3 {[%clk 0:00:06.5]}
47. Ke4 {[%clk 0:00:06.1]} 47... Be1 {[%clk 0:00:06.8]} 48. Kf3 {[%clk
0:00:05.5]} 48... Bd2 {[%clk 0:00:07]} 49. Ke4 {[%clk 0:00:05.3]} 49... Bc3
{[%clk 0:00:07.3]} 50. Bc4 {[%clk 0:00:05.5]} 50... Bd2 {[%clk 0:00:07.6]} 51.
Bb3 {[%clk 0:00:06.4]} 51... Bc3 {[%clk 0:00:07.9]} 52. Kd5 {[%clk 0:00:06.5]}
52... Bd2 {[%clk 0:00:08.3]} 53. Ke4 {[%clk 0:00:07.4]} 1/2-1/2

[Event "*** Titled Tuesday Blitz"]
[Site "Chess.com"]
[Date "2021.04.06"]
[Round "8"]
[White "I_Enchev"]
[Black "AlexPapasimakopoulos"]
[Result "0-1"]
[WhiteElo "2505"]
[BlackElo "2632"]
[TimeControl "180+1"]
[EndTime "11:29:57 PDT"]
[Termination "AlexPapasimakopoulos won by checkmate"]

1. d4 {[%clk 0:03:00.9]} 1... f5 {[%clk 0:02:59.8]} 2. g3 {[%clk 0:02:59.1]}
2... Nf6 {[%clk 0:02:59.1]} 3. Bg2 {[%clk 0:02:58.2]} 3... g6 {[%clk 0:02:59.3]}
4. Nh3 {[%clk 0:02:58.6]} 4... Bg7 {[%clk 0:02:59.6]} 5. Nf4 {[%clk 0:02:59.1]}
5... Nc6 {[%clk 0:02:58.8]} 6. c4 {[%clk 0:02:58.2]} 6... e5 {[%clk 0:02:56.8]}
7. dxe5 {[%clk 0:02:57.7]} 7... Nxe5 {[%clk 0:02:57.7]} 8. b3 {[%clk 0:02:53.9]}
8... O-O {[%clk 0:02:55.4]} 9. Bb2 {[%clk 0:02:52.9]} 9... d6 {[%clk 0:02:54.1]}
10. O-O {[%clk 0:02:52.1]} 10... Rb8 {[%clk 0:02:52.2]} 11. Nc3 {[%clk 0:02:52]}
11... Bd7 {[%clk 0:02:51.1]} 12. Qc2 {[%clk 0:02:49.6]} 12... g5 {[%clk
0:02:33.2]} 13. Nfd5 {[%clk 0:02:46.8]} 13... Nxd5 {[%clk 0:02:27.3]} 14. Nxd5
{[%clk 0:02:44.5]} 14... f4 {[%clk 0:02:23]} 15. Rad1 {[%clk 0:02:16.4]} 15...
a5 {[%clk 0:02:10.4]} 16. Kh1 {[%clk 0:02:13.1]} 16... Bf5 {[%clk 0:02:00]} 17.
Be4 {[%clk 0:02:05]} 17... Bxe4+ {[%clk 0:01:50.1]} 18. Qxe4 {[%clk 0:02:05.9]}
18... c6 {[%clk 0:01:39.6]} 19. Nc3 {[%clk 0:01:56.8]} 19... Qf6 {[%clk
0:01:34.1]} 20. gxf4 {[%clk 0:01:48.7]} 20... Qxf4 {[%clk 0:01:26.6]} 21. Qxf4
{[%clk 0:01:42.1]} 21... Rxf4 {[%clk 0:01:27.5]} 22. Rxd6 {[%clk 0:01:39.4]}
22... Ng4 {[%clk 0:01:27.7]} 23. f3 {[%clk 0:01:33.9]} 23... Re8 {[%clk
0:01:14.4]} 24. Rd2 {[%clk 0:01:09.7]} 24... Re6 {[%clk 0:01:05.5]} 25. Rg1
{[%clk 0:01:07.4]} 25... Ne3 {[%clk 0:00:33]} 26. Rxg5 {[%clk 0:01:04.2]} 26...
Rg6 {[%clk 0:00:28.4]} 27. Rxg6 {[%clk 0:00:48.4]} 27... hxg6 {[%clk 0:00:29.3]}
28. Rd8+ {[%clk 0:00:47.7]} 28... Rf8 {[%clk 0:00:18.7]} 29. Rd7 {[%clk
0:00:45.6]} 29... Rf7 {[%clk 0:00:18.1]} 30. Rd6 {[%clk 0:00:30.5]} 30... Kh7
{[%clk 0:00:17.6]} 31. Na4 {[%clk 0:00:28.1]} 31... Bxb2 {[%clk 0:00:16.1]} 32.
Nxb2 {[%clk 0:00:29]} 32... Re7 {[%clk 0:00:16.5]} 33. Nd3 {[%clk 0:00:26.8]}
33... Nf5 {[%clk 0:00:16.7]} 34. Rf6 {[%clk 0:00:19.4]} 34... Rxe2 {[%clk
0:00:16.8]} 35. Kg1 {[%clk 0:00:14]} 35... Kg7 {[%clk 0:00:16.4]} 36. Rxg6+
{[%clk 0:00:11.8]} 36... Kf7 {[%clk 0:00:15.2]} 37. Rg5 {[%clk 0:00:09.9]} 37...
Nh4 {[%clk 0:00:15.3]} 38. Rg3 {[%clk 0:00:08.6]} 38... Rxa2 {[%clk 0:00:14.9]}
39. Ne5+ {[%clk 0:00:08]} 39... Kf6 {[%clk 0:00:14.7]} 40. Rg4 {[%clk
0:00:08.1]} 40... Nf5 {[%clk 0:00:14.5]} 41. Nd3 {[%clk 0:00:07.3]} 41... Ne3
{[%clk 0:00:14.7]} 42. Rf4+ {[%clk 0:00:07.1]} 42... Kg5 {[%clk 0:00:15.3]} 43.
h4+ {[%clk 0:00:06.9]} 43... Kh6 {[%clk 0:00:14.6]} 44. Re4 {[%clk 0:00:07]}
44... Nc2 {[%clk 0:00:14.4]} 45. Re6+ {[%clk 0:00:06.9]} 45... Kh5 {[%clk
0:00:14.6]} 46. Re4 {[%clk 0:00:07.1]} 46... Na1 {[%clk 0:00:13.9]} 47. Ne5
{[%clk 0:00:06.7]} 47... Nxb3 {[%clk 0:00:13.9]} 48. Nd7 {[%clk 0:00:05.5]}
48... Nd2 {[%clk 0:00:14.2]} 49. Nf6+ {[%clk 0:00:05.7]} 49... Kg6 {[%clk
0:00:13.9]} 50. Rf4 {[%clk 0:00:06.3]} 50... a4 {[%clk 0:00:13.3]} 51. h5+
{[%clk 0:00:06.7]} 51... Kg5 {[%clk 0:00:13.9]} 52. Rg4+ {[%clk 0:00:05.5]}
52... Kxf6 {[%clk 0:00:14.3]} 53. h6 {[%clk 0:00:05.7]} 53... Nxf3+ {[%clk
0:00:14.9]} 54. Kh1 {[%clk 0:00:05.9]} 54... Rh2# {[%clk 0:00:11.3]} 0-1

[Event "*** Titled Tuesday Blitz"]
[Site "Chess.com"]
[Date "2021.04.06"]
[Round "8"]
[White "Ave_Mariia"]
[Black "Godzillator"]
[Result "1/2-1/2"]
[WhiteElo "2467"]
[BlackElo "2315"]
[TimeControl "180+1"]
[EndTime "11:30:00 PDT"]
[Termination "Game drawn by stalemate"]

1. d4 {[%clk 0:03:00.9]} 1... d5 {[%clk 0:02:52.6]} 2. c4 {[%clk 0:03:00.8]}
2... c6 {[%clk 0:02:52.8]} 3. Nf3 {[%clk 0:02:59.9]} 3... Nf6 {[%clk 0:02:53]}
4. Qc2 {[%clk 0:03:00.3]} 4... dxc4 {[%clk 0:02:52.4]} 5. Qxc4 {[%clk
0:03:00.5]} 5... Bf5 {[%clk 0:02:53]} 6. g3 {[%clk 0:02:57.1]} 6... e6 {[%clk
0:02:52.8]} 7. Bg2 {[%clk 0:02:56.8]} 7... Be7 {[%clk 0:02:53.3]} 8. O-O {[%clk
0:02:56.9]} 8... O-O {[%clk 0:02:53.8]} 9. e3 {[%clk 0:02:57.3]} 9... Nbd7
{[%clk 0:02:53.9]} 10. Qe2 {[%clk 0:02:57.4]} 10... Ne4 {[%clk 0:02:52.9]} 11.
Nfd2 {[%clk 0:02:53.1]} 11... Ndf6 {[%clk 0:02:51.1]} 12. Nc3 {[%clk 0:02:47.3]}
12... Nxd2 {[%clk 0:02:45.9]} 13. Bxd2 {[%clk 0:02:47.1]} 13... Bg6 {[%clk
0:02:44.3]} 14. Rad1 {[%clk 0:02:41.6]} 14... Qc7 {[%clk 0:02:43.3]} 15. e4
{[%clk 0:02:36.4]} 15... e5 {[%clk 0:02:40.3]} 16. Be3 {[%clk 0:02:30.1]} 16...
Rfd8 {[%clk 0:02:26.2]} 17. d5 {[%clk 0:02:26.6]} 17... cxd5 {[%clk 0:02:19.2]}
18. exd5 {[%clk 0:02:25.8]} 18... Qd7 {[%clk 0:02:12.6]} 19. Rd2 {[%clk
0:02:15.4]} 19... Bb4 {[%clk 0:02:11.2]} 20. Rfd1 {[%clk 0:02:04.4]} 20... Rac8
{[%clk 0:02:05]} 21. d6 {[%clk 0:01:54.5]} 21... Bxc3 {[%clk 0:01:54]} 22. bxc3
{[%clk 0:01:55.4]} 22... Bh5 {[%clk 0:01:53.9]} 23. Bf3 {[%clk 0:01:54.2]} 23...
Bxf3 {[%clk 0:01:52.7]} 24. Qxf3 {[%clk 0:01:55.1]} 24... Rxc3 {[%clk
0:01:46.2]} 25. Qe2 {[%clk 0:01:46.2]} 25... b6 {[%clk 0:01:42.8]} 26. Bg5
{[%clk 0:01:32.1]} 26... Qe6 {[%clk 0:01:38.3]} 27. d7 {[%clk 0:01:24.6]} 27...
h6 {[%clk 0:01:35.3]} 28. Rd6 {[%clk 0:01:20]} 28... Qc4 {[%clk 0:01:21]} 29.
Qxc4 {[%clk 0:01:19]} 29... Rxc4 {[%clk 0:01:21.2]} 30. Bxf6 {[%clk 0:01:13.9]}
30... gxf6 {[%clk 0:01:21.3]} 31. Rxf6 {[%clk 0:01:14.2]} 31... Rc7 {[%clk
0:01:19.8]} 32. Rfd6 {[%clk 0:01:08.3]} 32... Kf8 {[%clk 0:01:18.8]} 33. R6d5
{[%clk 0:01:02.6]} 33... f6 {[%clk 0:01:17.6]} 34. f4 {[%clk 0:00:58.7]} 34...
exf4 {[%clk 0:01:16.8]} 35. gxf4 {[%clk 0:00:59.6]} 35... Ke7 {[%clk 0:01:17.2]}
36. Re1+ {[%clk 0:00:57.7]} 36... Kf7 {[%clk 0:01:17.3]} 37. Red1 {[%clk
0:00:40.6]} 37... Ke7 {[%clk 0:01:15]} 38. Rh5 {[%clk 0:00:39.8]} 38... Rcxd7
{[%clk 0:01:13.2]} 39. Re1+ {[%clk 0:00:35.1]} 39... Kf7 {[%clk 0:01:10.4]} 40.
Rxh6 {[%clk 0:00:35.5]} 40... Rd1 {[%clk 0:01:10.4]} 41. Kf1 {[%clk 0:00:26.8]}
41... Kg7 {[%clk 0:01:05.2]} 42. Rh3 {[%clk 0:00:26.2]} 42... R8d2 {[%clk
0:01:00.6]} 43. Rg3+ {[%clk 0:00:24.8]} 43... Kf7 {[%clk 0:01:00]} 44. h4 {[%clk
0:00:23]} 44... Rxe1+ {[%clk 0:00:59.2]} 45. Kxe1 {[%clk 0:00:23.8]} 45... Rxa2
{[%clk 0:00:59.3]} 46. h5 {[%clk 0:00:23.8]} 46... Rh2 {[%clk 0:00:59.2]} 47.
Ra3 {[%clk 0:00:23.9]} 47... a5 {[%clk 0:00:56.4]} 48. Rb3 {[%clk 0:00:24.1]}
48... Rxh5 {[%clk 0:00:52.7]} 49. Rxb6 {[%clk 0:00:24.3]} 49... Rf5 {[%clk
0:00:50.5]} 50. Ra6 {[%clk 0:00:24.3]} 50... Kg6 {[%clk 0:00:50]} 51. Ke2 {[%clk
0:00:24.7]} 51... Kh5 {[%clk 0:00:50.2]} 52. Kf3 {[%clk 0:00:24.3]} 52... Kh4
{[%clk 0:00:44.7]} 53. Ke4 {[%clk 0:00:24.3]} 53... Kg4 {[%clk 0:00:42.6]} 54.
Ke3 {[%clk 0:00:19.4]} 54... Rxf4 {[%clk 0:00:32]} 55. Rxa5 {[%clk 0:00:19.5]}
55... Rf1 {[%clk 0:00:27.4]} 56. Ke2 {[%clk 0:00:18.9]} 56... Rf5 {[%clk
0:00:26.8]} 57. Rxf5 {[%clk 0:00:16.8]} 57... Kxf5 {[%clk 0:00:27.1]} 58. Kf3
{[%clk 0:00:17.5]} 58... Ke5 {[%clk 0:00:27.4]} 59. Ke3 {[%clk 0:00:17.8]} 59...
Kf5 {[%clk 0:00:26.7]} 60. Kf3 {[%clk 0:00:18.1]} 60... Ke5 {[%clk 0:00:27.2]}
61. Ke3 {[%clk 0:00:18.5]} 61... f5 {[%clk 0:00:27.7]} 62. Kf3 {[%clk
0:00:18.7]} 62... f4 {[%clk 0:00:28.3]} 63. Kf2 {[%clk 0:00:19]} 63... Ke4
{[%clk 0:00:28.7]} 64. Ke2 {[%clk 0:00:19.4]} 64... f3+ {[%clk 0:00:28.5]} 65.
Kf2 {[%clk 0:00:19.6]} 65... Kf4 {[%clk 0:00:28.7]} 66. Kf1 {[%clk 0:00:18.4]}
66... Kg4 {[%clk 0:00:28.3]} 67. Kf2 {[%clk 0:00:18.3]} 67... Kf4 {[%clk
0:00:29.2]} 68. Kf1 {[%clk 0:00:18.4]} 68... Kg3 {[%clk 0:00:30.1]} 69. Kg1
{[%clk 0:00:18.5]} 69... f2+ {[%clk 0:00:30.6]} 70. Kf1 {[%clk 0:00:18.9]} 70...
Kf3 {[%clk 0:00:30.9]} 1/2-1/2

[Event "*** Titled Tuesday Blitz"]
[Site "Chess.com"]
[Date "2021.04.06"]
[Round "8"]
[White "Nachsueb"]
[Black "fabianvivasz"]
[Result "0-1"]
[WhiteElo "2192"]
[BlackElo "2395"]
[TimeControl "180+1"]
[EndTime "11:30:00 PDT"]
[Termination "fabianvivasz won by checkmate"]

1. d4 {[%clk 0:03:00.9]} 1... Nf6 {[%clk 0:02:58]} 2. c4 {[%clk 0:03:01.5]} 2...
g6 {[%clk 0:02:56.4]} 3. Nc3 {[%clk 0:03:02]} 3... d5 {[%clk 0:02:56.8]} 4. Nf3
{[%clk 0:03:01.2]} 4... Bg7 {[%clk 0:02:56.4]} 5. Bf4 {[%clk 0:03:01.9]} 5...
O-O {[%clk 0:02:49.3]} 6. e3 {[%clk 0:03:02.3]} 6... c5 {[%clk 0:02:46.4]} 7.
dxc5 {[%clk 0:03:03.2]} 7... Qa5 {[%clk 0:02:39.2]} 8. Rc1 {[%clk 0:03:02.6]}
8... Ne4 {[%clk 0:02:29.7]} 9. Be5 {[%clk 0:03:02.4]} 9... Bxe5 {[%clk
0:02:06.4]} 10. Nxe5 {[%clk 0:03:03.3]} 10... Nxc3 {[%clk 0:01:50.9]} 11. Rxc3
{[%clk 0:03:04.2]} 11... Qxa2 {[%clk 0:01:41.6]} 12. Qc2 {[%clk 0:02:55.8]}
12... Bf5 {[%clk 0:01:34.4]} 13. Qd2 {[%clk 0:02:44.4]} 13... Rd8 {[%clk
0:01:19.1]} 14. Be2 {[%clk 0:02:31.5]} 14... Na6 {[%clk 0:01:15.3]} 15. O-O
{[%clk 0:02:17.5]} 15... dxc4 {[%clk 0:00:51.1]} 16. Qc1 {[%clk 0:02:17.4]}
16... Qa5 {[%clk 0:00:44.1]} 17. Bxc4 {[%clk 0:02:10.2]} 17... e6 {[%clk
0:00:43.9]} 18. Bxa6 {[%clk 0:01:43.7]} 18... Qxa6 {[%clk 0:00:42.8]} 19. c6
{[%clk 0:01:43.7]} 19... bxc6 {[%clk 0:00:42.1]} 20. Nxc6 {[%clk 0:01:44.6]}
20... Rd7 {[%clk 0:00:36.2]} 21. Nd4 {[%clk 0:01:41]} 21... Rad8 {[%clk
0:00:34.1]} 22. Rc7 {[%clk 0:01:37.2]} 22... Bd3 {[%clk 0:00:26.1]} 23. Re1
{[%clk 0:01:29.9]} 23... e5 {[%clk 0:00:23.5]} 24. Nf3 {[%clk 0:01:22.6]} 24...
Qf6 {[%clk 0:00:20.1]} 25. Rxd7 {[%clk 0:01:12.9]} 25... Rxd7 {[%clk 0:00:21]}
26. Qc8+ {[%clk 0:01:13.3]} 26... Rd8 {[%clk 0:00:21.2]} 27. Qc5 {[%clk
0:01:13.7]} 27... Be4 {[%clk 0:00:09.6]} 28. Nxe5 {[%clk 0:01:07.1]} 28... Rd5
{[%clk 0:00:04.7]} 29. Qc8+ {[%clk 0:01:02]} 29... Kg7 {[%clk 0:00:04.2]} 30.
Nd7 {[%clk 0:00:56.5]} 30... Qd6 {[%clk 0:00:02.8]} 31. Nb8 {[%clk 0:00:48.9]}
31... Rd1 {[%clk 0:00:02.5]} 32. Qc3+ {[%clk 0:00:45.3]} 32... f6 {[%clk
0:00:02.7]} 33. f3 {[%clk 0:00:29.8]} 33... Rxe1+ {[%clk 0:00:03.1]} 34. Qxe1
{[%clk 0:00:29.4]} 34... Bb7 {[%clk 0:00:04]} 35. e4 {[%clk 0:00:17]} 35... Qxb8
{[%clk 0:00:03.8]} 36. Qc3 {[%clk 0:00:17.9]} 36... Qd6 {[%clk 0:00:03.8]} 37.
Kf1 {[%clk 0:00:18.3]} 37... Ba6+ {[%clk 0:00:03.8]} 38. Kf2 {[%clk 0:00:18]}
38... Qb6+ {[%clk 0:00:04.1]} 39. Kg3 {[%clk 0:00:17.9]} 39... h5 {[%clk
0:00:04.8]} 40. f4 {[%clk 0:00:18.2]} 40... Bb7 {[%clk 0:00:03.3]} 41. Kf3
{[%clk 0:00:18.7]} 41... Qe6 {[%clk 0:00:03.1]} 42. Qd4 {[%clk 0:00:18.8]} 42...
Qf7 {[%clk 0:00:01.5]} 43. b4 {[%clk 0:00:19.2]} 43... Qc7 {[%clk 0:00:02.1]}
44. Ke3 {[%clk 0:00:18.9]} 44... Qc6 {[%clk 0:00:02.6]} 45. g3 {[%clk
0:00:18.6]} 45... Qb6 {[%clk 0:00:03]} 46. Kd3 {[%clk 0:00:18.1]} 46... Qxd4+
{[%clk 0:00:03]} 47. Kxd4 {[%clk 0:00:19]} 47... Kf7 {[%clk 0:00:03.8]} 48. e5
{[%clk 0:00:19.3]} 48... f5 {[%clk 0:00:03.1]} 49. Kc5 {[%clk 0:00:19.3]} 49...
Ke6 {[%clk 0:00:03.7]} 50. b5 {[%clk 0:00:19.5]} 50... g5 {[%clk 0:00:02.8]} 51.
h3 {[%clk 0:00:19.2]} 51... gxf4 {[%clk 0:00:02.6]} 52. gxf4 {[%clk 0:00:20.1]}
52... h4 {[%clk 0:00:03.3]} 53. Kb4 {[%clk 0:00:18.9]} 53... Bg2 {[%clk
0:00:03.7]} 54. Ka5 {[%clk 0:00:19.6]} 54... Bxh3 {[%clk 0:00:04]} 55. Ka6
{[%clk 0:00:20.2]} 55... Bf1 {[%clk 0:00:04.4]} 56. Kxa7 {[%clk 0:00:20.9]}
56... Bxb5 {[%clk 0:00:04.9]} 57. Kb6 {[%clk 0:00:20.9]} 57... Bd3 {[%clk
0:00:05.2]} 58. Kc5 {[%clk 0:00:21.8]} 58... h3 {[%clk 0:00:05.3]} 59. Kd4
{[%clk 0:00:22.7]} 59... Be4 {[%clk 0:00:05.8]} 60. Ke3 {[%clk 0:00:23.1]} 60...
h2 {[%clk 0:00:06.7]} 61. Kf2 {[%clk 0:00:23.6]} 61... h1=Q {[%clk 0:00:07.5]}
62. Kg3 {[%clk 0:00:24.2]} 62... Qf3+ {[%clk 0:00:08]} 63. Kh4 {[%clk
0:00:24.4]} 63... Qg4# {[%clk 0:00:08.3]} 0-1

[Event "*** Titled Tuesday Blitz"]
[Site "Chess.com"]
[Date "2021.04.06"]
[Round "8"]
[White "KetiGrant"]
[Black "Tpros"]
[Result "0-1"]
[WhiteElo "2354"]
[BlackElo "2512"]
[TimeControl "180+1"]
[EndTime "11:30:01 PDT"]
[Termination "Tpros won on time"]

1. e4 {[%clk 0:03:00.9]} 1... c5 {[%clk 0:02:59.2]} 2. Nf3 {[%clk 0:03:00.2]}
2... a6 {[%clk 0:02:59.4]} 3. c4 {[%clk 0:02:59.2]} 3... d6 {[%clk 0:02:59.3]}
4. d4 {[%clk 0:02:58.5]} 4... cxd4 {[%clk 0:03:00.2]} 5. Nxd4 {[%clk 0:02:58.7]}
5... g6 {[%clk 0:03:00.4]} 6. Nc3 {[%clk 0:02:57.9]} 6... Bg7 {[%clk 0:03:01.1]}
7. Be3 {[%clk 0:02:58.4]} 7... Nf6 {[%clk 0:03:01.8]} 8. Be2 {[%clk 0:02:57.4]}
8... Bd7 {[%clk 0:03:00.8]} 9. O-O {[%clk 0:02:56.6]} 9... Nc6 {[%clk
0:03:00.8]} 10. Rc1 {[%clk 0:02:54.3]} 10... O-O {[%clk 0:02:59.7]} 11. f3
{[%clk 0:02:53.3]} 11... Re8 {[%clk 0:02:59.6]} 12. Qd2 {[%clk 0:02:49.8]} 12...
Nxd4 {[%clk 0:02:55.5]} 13. Bxd4 {[%clk 0:02:48.7]} 13... Bc6 {[%clk 0:02:55.4]}
14. Kh1 {[%clk 0:02:44.5]} 14... Qa5 {[%clk 0:02:51.8]} 15. a4 {[%clk
0:02:33.6]} 15... Rac8 {[%clk 0:02:50]} 16. Rfd1 {[%clk 0:02:29.4]} 16... h5
{[%clk 0:02:48.2]} 17. Rb1 {[%clk 0:02:21.8]} 17... Qb4 {[%clk 0:02:40.6]} 18.
b3 {[%clk 0:02:18]} 18... Nd7 {[%clk 0:02:21.9]} 19. Bxg7 {[%clk 0:02:10.9]}
19... Kxg7 {[%clk 0:02:22.8]} 20. Qd4+ {[%clk 0:02:10.3]} 20... f6 {[%clk
0:02:17.1]} 21. f4 {[%clk 0:01:56]} 21... a5 {[%clk 0:02:11.8]} 22. Bf3 {[%clk
0:01:37.8]} 22... Qc5 {[%clk 0:02:04.5]} 23. Qd3 {[%clk 0:01:34.1]} 23... Qb6
{[%clk 0:01:30.6]} 24. Qe2 {[%clk 0:01:33.8]} 24... Nc5 {[%clk 0:01:22.6]} 25.
Nd5 {[%clk 0:01:23.2]} 25... Bxd5 {[%clk 0:01:22.1]} 26. exd5 {[%clk 0:01:24.1]}
26... e5 {[%clk 0:01:14.3]} 27. dxe6 {[%clk 0:01:18.9]} 27... Rxe6 {[%clk
0:01:14.3]} 28. Qc2 {[%clk 0:01:13.4]} 28... f5 {[%clk 0:01:03.8]} 29. Qc3+
{[%clk 0:01:04.2]} 29... Kh6 {[%clk 0:01:01.8]} 30. Bd5 {[%clk 0:00:59.3]} 30...
Ne4 {[%clk 0:00:56.3]} 31. Qd4 {[%clk 0:00:46.5]} 31... Qxd4 {[%clk 0:00:47.6]}
32. Rxd4 {[%clk 0:00:47.4]} 32... Re7 {[%clk 0:00:32.5]} 33. Kg1 {[%clk
0:00:47.1]} 33... Nc5 {[%clk 0:00:29.8]} 34. Bf3 {[%clk 0:00:36]} 34... Rd8
{[%clk 0:00:26.9]} 35. b4 {[%clk 0:00:29.3]} 35... axb4 {[%clk 0:00:26.1]} 36.
Rxb4 {[%clk 0:00:29.3]} 36... Rdd7 {[%clk 0:00:19.9]} 37. a5 {[%clk 0:00:28.9]}
37... h4 {[%clk 0:00:18.9]} 38. Rb6 {[%clk 0:00:27.4]} 38... Re6 {[%clk
0:00:10.8]} 39. Kf2 {[%clk 0:00:22.8]} 39... Rde7 {[%clk 0:00:10.2]} 40. Rbxd6
{[%clk 0:00:20.5]} 40... Ne4+ {[%clk 0:00:10.2]} 41. Bxe4 {[%clk 0:00:19.9]}
41... Rxe4 {[%clk 0:00:11.1]} 42. Rxe4 {[%clk 0:00:15.7]} 42... Rxe4 {[%clk
0:00:12]} 43. Rb6 {[%clk 0:00:09.9]} 43... Rxf4+ {[%clk 0:00:11.9]} 44. Ke3
{[%clk 0:00:09.2]} 44... Rxc4 {[%clk 0:00:12.8]} 45. Rxb7 {[%clk 0:00:09.5]}
45... Ra4 {[%clk 0:00:11.7]} 46. Ra7 {[%clk 0:00:09.5]} 46... Kg5 {[%clk
0:00:10.1]} 47. a6 {[%clk 0:00:09.4]} 47... Ra2 {[%clk 0:00:10]} 48. Kf3 {[%clk
0:00:09]} 48... Ra3+ {[%clk 0:00:10]} 49. Kf2 {[%clk 0:00:09]} 49... Ra2+ {[%clk
0:00:10.4]} 50. Kf3 {[%clk 0:00:09.3]} 50... Ra3+ {[%clk 0:00:10.8]} 51. Kf2
{[%clk 0:00:09.5]} 51... Kf4 {[%clk 0:00:10.4]} 52. Ra8 {[%clk 0:00:05.5]} 52...
g5 {[%clk 0:00:09]} 53. a7 {[%clk 0:00:03.2]} 53... Ra2+ {[%clk 0:00:09.3]} 54.
Kg1 {[%clk 0:00:02.6]} 54... Kg4 {[%clk 0:00:09.7]} 0-1